Cogmind - Beta 11.1 @@@ ROGUE MODE // 2022.07.07 @ 12:27:05 Player: Smie Result: Destroyed by G-34 Mercenary with Small Laser Performance ------------- Evolutions (0) 0 Regions Visited (2) 400 Robots Destroyed (13) 65 Value Destroyed (293) 293 Prototype IDs (3) 60 Alien Tech Used (0) 0 Bonus (0) 0 TOTAL SCORE: 818 Bonus ------- None Cogmind --------- Core Integrity 0/250 Matter 300/300 Energy 250/250 System Corruption 0% Temperature Cool (6) Movement Walking (120) Location -10/Mines Parts ------- > --- POWER (1) -------- Ion Engine > --- PROPULSION (2) --- Aluminum Leg Aluminum Leg > --- UTILITY (2) ------ Medium Storage Unit Signal Interpreter > --- WEAPON (2) ------- Small Laser Assault Rifle > --- INVENTORY (10) --- Ion Engine Improved Treads Improved Treads Improved Treads Improved Treads Weight Redist. System Grenade Launcher Grenade Launcher Mining Laser Peak State ------------ > --- POWER ------------ Ion Engine > --- PROPULSION ------- Improved Flight Unit Improved Flight Unit > --- UTILITY ---------- Heat Sink Small Storage Unit > --- WEAPON ----------- Assault Rifle Light Assault Rifle > --- INVENTORY -------- Ion Engine Light Treads Light Treads Wheel Compact Wheel Small Laser Grenade Launcher Grenade Launcher [Rating: 11] Favorites ----------- Power Ion Engine Engine Ion Engine Propulsion Aluminum Leg Leg Aluminum Leg Flight Unit Improved Flight Unit Utility Small Storage Unit Device Heat Sink Storage Small Storage Unit Processor Signal Interpreter Weapon Assault Rifle Energy Gun Small Laser Ballistic Gun Assault Rifle Launcher Grenade Launcher Build | -11 -10 -10 ------- Run | Scr Mat Min Slots Evolved . | . . . Power . | . . . Propulsion . | . . . Utility . | . . . Weapon . | . . . Parts Attached 20 | 6 13 1 Power 1 | 1 . . Engine 1 | 1 . . Core . | . . . Reactor . | . . . Propulsion 10 | 2 8 . Treads . | . . . Leg 7 | 2 5 . Wheel . | . . . Hover . | . . . Flight 3 | . 3 . Utility 4 | 1 3 . Device 1 | . 1 . Storage 2 | 1 1 . Processor 1 | . 1 . Hackware . | . . . Protection . | . . . Artifact . | . . . Weapon 5 | 2 2 1 Energy Gun 1 | . . 1 Energy Cannon . | . . . Ballistic Gun 3 | 2 1 . Ballistic Cannon . | . . . Launcher 1 | . 1 . Special Weapon . | . . . Impact Weapon . | . . . Slashing Weapon . | . . . Piercing Weapon . | . . . Special Melee Weapon . | . . . Unidentified Prototypes 1 | . 1 . Parts Lost 1 | . . 1 Power . | . . . Propulsion . | . . . Utility . | . . . Weapon 1 | . . 1 Highest Loss Streak 1 | . . 1 To Critical Strikes . | . . . Average Slot Usage (%) 97 | . 95 100 Engine 14 | . 14 14 Leg 27 | . 27 28 Device 4 | . 9 . Storage 14 | . 14 14 Processor 7 | . 1 14 Energy Gun 1 | . . 2 Ballistic Gun 25 | . 26 25 Naked Turns . | . . . Heaviest Build 18 | 13 18 18 Greatest Support 20 | 20 20 20 Greatest Overweight (x) 4 | . 4 . Average Overweight (x) . | . . . Largest Inventory Capacity 10 | 8 10 10 Average Capacity 8 | 6 8 10 Most Carried 10 | 6 10 10 Average Carried 8 | 4 7 9 Final Capacity 10 | 8 10 10 Final Carried 10 | 6 10 9 Class Distribution -------------------- 100% | Mutant Dominant Class ---------------- Mutant | -10/Materials Mutant | -10/Mines Resources | -11 -10 -10 ----------- Run | Scr Mat Min Matter Collected 604 | 260 221 123 Remotely . | . . . Salvage Created 391 | . 279 112 Parts 29 | . 21 8 Haulers Intercepted 1 | . 1 . Recyclers Shooed 1 | . 1 . Parts Field Recycled . | . . . Retrieved Matter . | . . . Parts Self-Destructed . | . . . Prevented . | . . . Kills | -11 -10 -10 ------- Run | Scr Mat Min Combat Hostiles Destroyed 10 | . 7 3 Guns 9 | . 6 3 AOE 1 | . 1 . Classes Destroyed 5 | . 5 . Worker 1 | . 1 . Tunneler 1 | . 1 . Hauler 1 | . 1 . Swarmer 4 | . 3 1 Grunt 6 | . 4 2 Best Kill Streak 3 | . 3 2 Combat Bots Only 3 | . 3 2 Max Kills in Single Turn 2 | . 2 1 Gunslinging . | . . . Exploded 1 | . 1 . Melee . | . . . Uniques/NPCs Destroyed . | . . . Combat | -11 -10 -10 -------- Run | Scr Mat Min Damage Taken 647 | . 353 294 Core 256 | . 107 149 Absorbed by Shields . | . . . Core Remaining (%) 100 | 100 . . Volleys Fired 54 | . 36 18 Largest 2 | . 2 2 Hottest 60 | . 40 60 Shots Fired 102 | . 66 36 Gun 101 | . 65 36 Cannon . | . . . Launcher 1 | . 1 . Special . | . . . Kinetic 98 | . 65 33 Thermal 3 | . . 3 Explosive 1 | . 1 . Electromagnetic . | . . . Robot Hit Streak 8 | . 6 8 Robot Miss Streak 3 | . 3 3 Penetration Max . | . . . Secondary Targets 4 | . 3 1 Max Gunslinging Chain 1 | . 1 1 Shots Hit Robots 58 | . 37 21 Core Hits 27 | . 18 9 Critical Kills . | . . . Critical Parts Destroyed . | . . . Critical Strikes . | . . . Melee Attacks . | . . . Impact . | . . . Slashing . | . . . Piercing . | . . . Sneak Attacks . | . . . Combat Hostiles . | . . . Follow-up Attacks . | . . . Damage Inflicted 740 | . 493 247 Guns 634 | . 387 247 Cannons . | . . . Explosions 104 | . 104 . Melee . | . . . Ramming 2 | . 2 . Kinetic 600 | . 387 213 Thermal 34 | . . 34 Explosive 104 | . 104 . Electromagnetic . | . . . Impact . | . . . Slashing . | . . . Piercing . | . . . Highest Corruption . | . . . Average Corruption . | . . . Corruption Purged . | . . . Corruption Blocked . | . . . Overload Shots . | . . . Overflow Damage . | . . . Projectiles . | . . . Explosions . | . . . Melee . | . . . Knockbacks . | . . . Impact . | . . . Kinetic . | . . . Secondary . | . . . Self-Inflicted Damage . | . . . Shots . | . . . Rammed . | . . . Targets Rammed 1 | . 1 . Kicked 1 | . 1 . Crushed . | . . . Highest Temperature 376 | . 376 27 Average Temperature 77 | . 125 15 Received Heat Transfer 222 | . 99 123 Siege Activations . | . . . Robots Corrupted . | . . . Combat Hostiles . | . . . Parts Fried . | . . . Impact Corruptions . | . . . Robots Melted . | . . . Combat Hostiles . | . . . Parts Melted . | . . . Heat Transferred 75 | . . 75 Parts Sabotaged . | . . . Parts Stolen . | . . . Parts Stripped . | . . . Power Chain Reactions . | . . . Missiles Intercepted . | . . . Alert | -11 -10 -10 ------- Run | Scr Mat Min Peak Influence 249 | . 249 148 Initial 18 | . . 18 Average 81 | . 123 49 Maximum Alert Level 1 | . 1 . Low Security (%) 90 | 100 81 100 Level 1 9 | . 18 . Level 2 . | . . . Level 3 . | . . . Level 4 . | . . . Level 5 . | . . . High Security . | . . . Max Security . | . . . Squads Dispatched 2 | . 2 . Investigation 1 | . 1 . Extermination . | . . . Reinforcement 1 | . 1 . Assault . | . . . Garrison . | . . . Intercept . | . . . Searches Triggered . | . . . Construction Impeded . | . . . Haulers Reinforced . | . . . Active Scanning Responses . | . . . Cargo Convoy Interrupts . | . . . Stealth | -11 -10 -10 --------- Run | Scr Mat Min Distress Signals 1 | . 1 . Communications Jammed . | . . . Distress Signals . | . . . Times Spotted 18 | . 10 8 Peak Tracking Total 5 | . 4 5 Tactical Retreats 4 | . 1 3 Traps | -11 -10 -10 ------- Run | Scr Mat Min Traps Triggered 2 | . 2 . Indirectly . | . . . Trap Hack Attempts . | . . . Triggered . | . . . Disarmed . | . . . Reprogrammed . | . . . Reused . | . . . Traps Extracted . | . . . Installed . | . . . Triggered . | . . . Machines | -11 -10 -10 ---------- Run | Scr Mat Min Machines Disabled . | . . . Max in Single Turn . | . . . Machines Sabotaged . | . . . Garrisons Compromised . | . . . Overloaded Fab Kills . | . . . Hacking | -11 -10 -10 --------- Run | Scr Mat Min Machines Accessed 2 | . 2 . Terminals 1 | . 1 . Fabricators . | . . . Repair Stations . | . . . Recycling Units 1 | . 1 . Scanalyzers . | . . . Garrison Access . | . . . Total Hacks 8 | . 8 . Successful 4 | . 4 . Failed 4 | . 4 . Catastrophic . | . . . Database Lockouts . | . . . Manual 1 | . 1 . Terminals 6 | . 6 . Fabricators . | . . . Repair Stations . | . . . Recycling Units 2 | . 2 . Scanalyzers . | . . . Garrison Access . | . . . Terminal Hacks 3 | . 3 . Prototype ID Bank 1 | . 1 . Emergency Access Points 1 | . 1 . Hauler Manifests 1 | . 1 . Fabricator Hacks . | . . . Repair Station Hacks . | . . . Recycling Unit Hacks . | . . . Scanalyzer . | . . . Garrison Access Hacks . | . . . Unauthorized Hacks 1 | . 1 . Terminals 1 | . 1 . Botnet 1 | . 1 . Fabricators . | . . . Repair Stations . | . . . Recycling Units . | . . . Scanalyzers . | . . . Garrison Access . | . . . Data Cores Recovered . | . . . Used . | . . . Hacking Detections 1 | . 1 . Full Trace Events . | . . . Feedback Events . | . . . Feedback Blocked . | . . . Robot Schematics Acquired . | . . . Robots Built . | . . . Authchips . | . . . Time . | . . . Total Robot Build Rating . | . . . Part Schematics Acquired . | . . . Parts Built . | . . . Authchips . | . . . Time . | . . . Total Part Build Rating . | . . . Parts Repaired . | . . . Time . | . . . Parts Recycled . | . . . Recycled Matter . | . . . Retrieved Matter . | . . . Retrieved Components . | . . . Parts Scanalyzed . | . . . Part Schematics Acquired . | . . . Parts Damaged . | . . . Bothacking | -11 -10 -10 ------------ Run | Scr Mat Min Used RIF Installer . | . . . Robots Hacked . | . . . Non-combat . | . . . Combat . | . . . Robot Hacks Applied . | . . . Relay Couplers Released . | . . . Fabnet Peak Effective % . | . . . Robots Rewired . | . . . Allies Hacked . | . . . Hacks Repelled . | . . . Allies | -11 -10 -10 -------- Run | Scr Mat Min Total Allies . | . . . Largest Group . | . . . Highest-Rated Group . | . . . Highest-Rated Ally . | . . . Total Orders . | . . . Ally Attacks . | . . . Total Damage . | . . . Kills . | . . . Allies Corrupted . | . . . Allies Melted . | . . . Intel | -11 -10 -10 ------- Run | Scr Mat Min Robot Analysis Total . | . . . Derelict Logs Recovered . | . . . Drone Launches . | . . . Drone Recoveries . | . . . Exploration | -11 -10 -10 ------------- Run | Scr Mat Min Turns Passed 841 | 87 418 336 Spaces Moved 506 | 50 226 230 Core 8 | 7 1 . Treads . | . . . Legs 498 | 43 225 230 Wheels . | . . . Hover . | . . . Flight . | . . . Fastest Speed 50 | 50 120 120 Average Speed 119 | 110 121 120 Slowest Speed 250 | 120 250 120 Overloaded Moves . | . . . Propulsion Burnouts . | . . . Robots Hopped . | . . . Cave-ins Triggered . | . . . Exploration Rate (%) 32 | 5 39 52 Regions Visited 2 Branch Regions 1 Pre-discovered Areas . | . . . Known Exits Taken 1 | . 1 . Unknown Exits Taken 1 | 1 . . Scrap Searched 1 | . . 1 Spaces Dug . | . . . Terrain Destroyed 5 | . 5 . Melee . | . . . Projectile . | . . . AOE 5 | . 5 . Terrain Rammed . | . . . Walls Destroyed . | . . . Machines Disabled . | . . . Actions | -11 -10 -10 --------- Run | Scr Mat Min Total 648 | 79 312 257 Wait 41 | 18 16 7 Move 504 | 49 225 230 Hop . | . . . Pick Up 14 | 6 8 . Fast Attach 14 | 6 8 . Attach 1 | . . 1 Detach . | . . . Swap 5 | . 5 . Drop 13 | . 13 . Fire 54 | . 36 18 Melee . | . . . Ram . | . . . Kick 1 | . 1 . Crush . | . . . Escape Stasis . | . . . Rewire 1 | . . 1 Trap . | . . . Miscellaneous . | . . . Route ------- -11/Scrapyard -10/Materials -10/Mines History --------- Turn | Location | Event 12 | -11/Scrapyard | Discovered new exit (range 16) 88 | -11/Scrapyard | Entered Materials 301 | -10/Materials | Discovered new exit (range 9) 304 | -10/Materials | Build established: Mutant 497 | -10/Materials | Identified exit to Mines 506 | -10/Materials | Entered Mines 694 | -10/Mines | Core integrity fell below 50% 719 | -10/Mines | Assembled infested the area 727 | -10/Mines | Core integrity fell below 20% 842 | -10/Mines | Destroyed by G-34 Mercenary with Small Laser Last Messages --------------- 00767_ An audio recording is triggered: "If you're looking for Megawrench, sorry but we're not in our cave right now, after essentially being evicted by all these Unaware tunnelers." 00767_ R-06 Scavenger collects Sml. Matter Pod. 00769_ Attempting to rewire as-82611. 00769_ as-82611 cannot be rewired. 00770_ "Blame H1-IDC, who apparently didn't care about the consequences of repeatedly making a mess in Materials. Shooting at robots and generally destroying stuff raised the alert level high enough to trigger assault squads over in the main complex, and they later decided the best way to defend their interests would be to start expanding in this direction." 00772_ R-06 Scavenger collects Wheel. 00782_ S-10 Pest destroyed. 00782_ Switching to secondary target: S-10 Pest. 00786_ Lgt. Assault Rifle destroyed. 00786_ Critical hit (Burn: +37). 00794_ G-47 Trooper destroyed. 00797_ Acquired 20 matter. 00798_ Acquired 6 matter. Map ----- +----------------------------------------------------+ | ????????????????????????????????????????????# | | ??????????????????????????????????????????? | | ????????????????????????????????????????" """ | | ??????????????????????????????????????""" """ | | ??????????????????????????????????????""" """ | | ?????????????????????????????????????? | | ??????????????????????????????????????""" """ | | ????????????????????????????????????" """ """ | | ??????????????????????????????????""" """ """ | | ????????????????????????????? | | ??????????????????????????????????""" """ """ | | ????????????????????????????????????" """ """ | | ??????????????????????????????????????""" """ | | ?????????????????????????????????????? | | ?????????????????????????????????????? | | ?????????????????????????????????????######## | | ????????????????????????????????????????????? | | ????????????????????????????????????????????? | | ????????????????????????????????????????????? | | ??############??????????????????????????????? | | ??# #??????????????????????????????? | | ??# """ """ ######????????????????###??????? | | ??# """ """ g #???????????????? "#??????? | | ??# """ """ ### ######???????????#%#??????? | | ??# """ """ #?# #???????#?###"#??????? | | ??# #?# @ #??????? # # ##?????? | | ??###### #####?######% #???????# ##????? | | ???????# ########??## #??????## ###### | | ???????# =% =! #?## #???#### | | ???????#######* ### #???# =[ ##### | | ?????????????# ## #???# # ##### | | ?????????????# # ##### #### | | ????????????## #??## #### | | ????????????# #######???# ##??? | | ????????????# #??????????? % #???? | | ????????????## #???????????# #????? | | ?????????????#### # #??????????# #????? | | ????????????????# ## #?????????# #????? | | ????????????????# ### #????????# ##????? | | ???????????????? #?######????????# #?????? | | ???????????????## #??????????????? ?????? | | ???????????????? ??????????????? ?????? | | ????????????????# ??????????????? ?????? | | ????????????????# ?????????????? ## ?????? | | ???????????????? ??????????????#??# ????? | | ???????????????? ??????????????????????? | | ????????????????# ???????????????????????? | | ?????????????????# ???????????????????????? | | ??????????????????# ???????????????????????? | | ???????????????????#????????????????????????? | +----------------------------------------------------+ Best States ------------- Heat Dissipation 35 Energy Generation 10 Energy Capacity 250 Matter Stores 300 Matter Capacity 300 Sight Range 16 Terrain Scan Density 10 Evasion (%) 55 Item Schematics ----------------- None Robot Schematics ------------------ None Fabricated ------------ Nothing Alien Tech Used ----------------- None Achievements -------------- None Challenges ------------ None Game ------ Seed AlphaCompactBattery Manual? 0 Play Time 00:11:42 Cumulative 80.1 hours Start 2022.07.07 @ 12:15:49 End 2022.07.07 @ 12:27:05 Sessions 1 Manual Loads 0 Difficulty Rogue Special Mode None Game No. 58 Rogue 39 Adventurer 16 Explorer 3 Win Type - Total 2 Types 2/0/0/0/0/0/0/0/0 Lore% 45 Gallery% 50 Achievement% 41 Wizard Run 0 Options --------- ASCII 1 Keyboard 1 Movement Vi Keybinds 0 Fullscreen 1 Font 28/Terminus Map View 67x55 Tactical HUD 1 Map Filters NONE Filters NONE Steam 1 RUN: c3613f02-715d-469c-bf74-23c91817f2c7